[Event "GrandPrix_29.05"]
[Site "Chess.com"]
[Date "2020.05.29"]
[Round "8"]
[White "Alexander_Donchenko"]
[Black "Guenplen"]
[Result "1-0"]
[WhiteElo "2731"]
[BlackElo "2504"]
[TimeControl "600+2"]
[EndTime "13:03:10 PDT"]
[Termination "Alexander_Donchenko won on time"]

1. c4 {[%clk 0:10:01.9]} 1... e6 {[%clk 0:10:00.2]} 2. g3 {[%clk 0:10:03.1]}
2... d5 {[%clk 0:10:00.8]} 3. Bg2 {[%clk 0:10:04.6]} 3... Nf6 {[%clk 0:10:02]}
4. Nf3 {[%clk 0:10:05]} 4... Be7 {[%clk 0:10:03]} 5. O-O {[%clk 0:10:05.9]} 5...
O-O {[%clk 0:10:02.8]} 6. d4 {[%clk 0:10:07]} 6... Nbd7 {[%clk 0:10:03.3]} 7.
Qc2 {[%clk 0:10:06.7]} 7... c6 {[%clk 0:10:02.8]} 8. Nbd2 {[%clk 0:10:07.6]}
8... b6 {[%clk 0:10:03.8]} 9. e4 {[%clk 0:10:08.9]} 9... dxc4 {[%clk 0:10:04.8]}
10. Nxc4 {[%clk 0:10:09]} 10... Bb7 {[%clk 0:10:05.7]} 11. Bg5 {[%clk
0:10:04.8]} 11... b5 {[%clk 0:09:42.5]} 12. Ne3 {[%clk 0:09:59.1]} 12... c5
{[%clk 0:08:57.9]} 13. e5 {[%clk 0:09:03.8]} 13... Nd5 {[%clk 0:08:31.2]} 14.
Nxd5 {[%clk 0:08:49.2]} 14... Bxd5 {[%clk 0:08:25.6]} 15. Bxe7 {[%clk
0:08:45.8]} 15... Qxe7 {[%clk 0:08:26.2]} 16. dxc5 {[%clk 0:08:46.8]} 16... Qxc5
{[%clk 0:07:44.7]} 17. Qxc5 {[%clk 0:08:36.1]} 17... Nxc5 {[%clk 0:07:46.6]} 18.
Nd4 {[%clk 0:08:37.7]} 18... Bxg2 {[%clk 0:07:11]} 19. Kxg2 {[%clk 0:08:39.6]}
19... Nd3 {[%clk 0:06:28.7]} 20. Nc6 {[%clk 0:08:35.2]} 20... a5 {[%clk
0:05:41.7]} 21. Rfd1 {[%clk 0:07:48.3]} 21... Nb4 {[%clk 0:03:14.7]} 22. Ne7+
{[%clk 0:07:43.3]} 22... Kh8 {[%clk 0:03:15.9]} 23. a3 {[%clk 0:07:44.6]} 23...
Na6 {[%clk 0:03:17.4]} 24. Rac1 {[%clk 0:07:38.1]} 24... h6 {[%clk 0:02:40.5]}
25. Rd7 {[%clk 0:06:10.5]} 25... a4 {[%clk 0:02:29.6]} 26. Kf3 {[%clk
0:05:37.7]} 26... b4 {[%clk 0:02:13.6]} 27. Rc4 {[%clk 0:05:09.6]} 27... Rfb8
{[%clk 0:01:30.8]} 28. Kg2 {[%clk 0:04:49.1]} 28... Rb5 {[%clk 0:01:08]} 29. Nc6
{[%clk 0:04:34.2]} 29... bxa3 {[%clk 0:00:54.6]} 30. bxa3 {[%clk 0:04:36.1]}
30... Rc8 {[%clk 0:00:42.5]} 31. Rxf7 {[%clk 0:04:28.5]} 31... Rb3 {[%clk
0:00:22.4]} 32. Ra7 {[%clk 0:04:05.6]} 32... Nb8 {[%clk 0:00:15.7]} 33. Na5
{[%clk 0:03:58]} 33... Rxc4 {[%clk 0:00:08.4]} 34. Nxc4 {[%clk 0:03:59.9]} 34...
Nc6 {[%clk 0:00:08.3]} 35. Rxa4 {[%clk 0:03:51.9]} 35... Rc3 {[%clk 0:00:09.1]}
36. h4 {[%clk 0:03:19.9]} 36... h5 {[%clk 0:00:09.1]} 37. Ne3 {[%clk 0:03:10.3]}
37... Nxe5 {[%clk 0:00:05.2]} 38. Ra5 {[%clk 0:03:11.5]} 38... Nd3 {[%clk
0:00:04.7]} 39. Rxh5+ {[%clk 0:03:11]} 39... Kg8 {[%clk 0:00:06.2]} 40. a4
{[%clk 0:03:09.7]} 40... Ra3 {[%clk 0:00:05.7]} 41. Ra5 {[%clk 0:03:03.6]} 41...
Ne1+ {[%clk 0:00:03.5]} 42. Kh3 {[%clk 0:03:01.2]} 42... Nd3 {[%clk 0:00:04.1]}
43. Ng4 {[%clk 0:03:00.7]} 43... Ra1 {[%clk 0:00:02.8]} 44. Ra8+ {[%clk
0:02:38.9]} 44... Kh7 {[%clk 0:00:03.9]} 45. a5 {[%clk 0:02:40]} 45... Ra2
{[%clk 0:00:04]} 46. Kg2 {[%clk 0:02:31.9]} 46... Ne1+ {[%clk 0:00:05.1]} 47.
Kf1 {[%clk 0:02:29.9]} 47... Nd3 {[%clk 0:00:04.5]} 48. h5 {[%clk 0:02:27.7]}
48... Nb4 {[%clk 0:00:03.4]} 49. Ne5 {[%clk 0:02:22.8]} 49... Ra1+ {[%clk
0:00:03.9]} 50. Kg2 {[%clk 0:02:22.3]} 50... Re1 {[%clk 0:00:03.6]} 51. Nf7
{[%clk 0:02:07.7]} 51... g6 {[%clk 0:00:03.9]} 52. h6 {[%clk 0:02:03.4]} 52...
g5 {[%clk 0:00:04.8]} 53. Rh8+ {[%clk 0:02:03.6]} 53... Kg6 {[%clk 0:00:06.1]}
54. Rg8+ {[%clk 0:02:05.1]} 54... Kxf7 {[%clk 0:00:05.4]} 55. h7 {[%clk
0:02:06.4]} 1-0

[Event "GrandPrix_29.05"]
[Site "Chess.com"]
[Date "2020.05.29"]
[Round "8"]
[White "Arseniy_Nesterov"]
[Black "grzechu96"]
[Result "1/2-1/2"]
[WhiteElo "2325"]
[BlackElo "2476"]
[TimeControl "600+2"]
[EndTime "13:03:12 PDT"]
[Termination "Game drawn by repetition"]

1. d4 {[%clk 0:10:01.9]} 1... d5 {[%clk 0:10:01.1]} 2. c4 {[%clk 0:10:02.9]}
2... c6 {[%clk 0:10:02.5]} 3. Nf3 {[%clk 0:10:03.4]} 3... Nf6 {[%clk 0:10:03.3]}
4. Nc3 {[%clk 0:10:04.5]} 4... dxc4 {[%clk 0:10:04.2]} 5. a4 {[%clk 0:10:05.4]}
5... Bf5 {[%clk 0:10:04.9]} 6. e3 {[%clk 0:10:06.3]} 6... e6 {[%clk 0:10:05.4]}
7. Bxc4 {[%clk 0:10:07]} 7... Bb4 {[%clk 0:10:06.8]} 8. O-O {[%clk 0:10:07.4]}
8... O-O {[%clk 0:10:08.2]} 9. Qe2 {[%clk 0:10:00.7]} 9... Nbd7 {[%clk
0:10:08.7]} 10. e4 {[%clk 0:10:00.6]} 10... Bg6 {[%clk 0:10:10.2]} 11. Bd3
{[%clk 0:10:01.5]} 11... Bh5 {[%clk 0:10:10.8]} 12. e5 {[%clk 0:09:50.2]} 12...
Nd5 {[%clk 0:10:12.1]} 13. Nxd5 {[%clk 0:09:50.8]} 13... cxd5 {[%clk 0:10:14]}
14. Qe3 {[%clk 0:09:49.7]} 14... Bg6 {[%clk 0:10:15.2]} 15. Bxg6 {[%clk
0:09:45.8]} 15... fxg6 {[%clk 0:10:14.8]} 16. Ng5 {[%clk 0:09:02.8]} 16... Re8
{[%clk 0:10:15.5]} 17. f4 {[%clk 0:08:53.6]} 17... Rc8 {[%clk 0:10:06.3]} 18.
Qd3 {[%clk 0:08:46.9]} 18... Qc7 {[%clk 0:09:49.1]} 19. Be3 {[%clk 0:08:32.3]}
19... Qc4 {[%clk 0:09:41.9]} 20. Qxc4 {[%clk 0:07:52.2]} 20... Rxc4 {[%clk
0:09:15.5]} 21. Rfc1 {[%clk 0:07:24.3]} 21... h6 {[%clk 0:08:52.2]} 22. Nf3
{[%clk 0:07:23.6]} 22... Rec8 {[%clk 0:08:50.1]} 23. Rxc4 {[%clk 0:06:45.6]}
23... Rxc4 {[%clk 0:08:52]} 24. Rc1 {[%clk 0:06:40]} 24... Rxc1+ {[%clk
0:08:05.9]} 25. Bxc1 {[%clk 0:06:40.1]} 25... Nb6 {[%clk 0:08:07.5]} 26. b3
{[%clk 0:06:40.9]} 26... Nc8 {[%clk 0:08:09]} 27. Kf1 {[%clk 0:06:37.4]} 27...
Ne7 {[%clk 0:08:09.5]} 28. Ke2 {[%clk 0:06:37.5]} 28... Nc6 {[%clk 0:08:05.6]}
29. Kd3 {[%clk 0:06:38.3]} 29... Kf7 {[%clk 0:07:42.4]} 30. g4 {[%clk
0:06:37.2]} 30... Na5 {[%clk 0:07:12.2]} 31. Bd2 {[%clk 0:05:53.7]} 31... Bxd2
{[%clk 0:07:11.4]} 32. Nxd2 {[%clk 0:05:54.6]} 32... Nc6 {[%clk 0:04:58.2]} 33.
Kc3 {[%clk 0:05:51]} 33... a5 {[%clk 0:04:58.7]} 34. Nb1 {[%clk 0:05:36.7]}
34... g5 {[%clk 0:04:35.9]} 35. fxg5 {[%clk 0:05:31.5]} 35... hxg5 {[%clk
0:04:35.7]} 36. Na3 {[%clk 0:05:25.6]} 36... Na7 {[%clk 0:02:52.6]} 37. b4
{[%clk 0:01:43.5]} 37... b6 {[%clk 0:02:51.4]} 38. bxa5 {[%clk 0:01:42.5]} 38...
bxa5 {[%clk 0:02:51]} 39. Nb5 {[%clk 0:01:36.3]} 39... Nc8 {[%clk 0:01:15.1]}
40. Kb3 {[%clk 0:01:05.7]} 40... Ke7 {[%clk 0:01:10.8]} 41. Nc7 {[%clk
0:00:29.6]} 41... Nb6 {[%clk 0:01:10.1]} 42. Na6 {[%clk 0:00:30.7]} 42... Nd7
{[%clk 0:00:55.3]} 43. Nc7 {[%clk 0:00:24]} 43... Nb6 {[%clk 0:00:55.2]} 44. Na6
{[%clk 0:00:24]} 44... Nd7 {[%clk 0:00:56.1]} 45. Nc7 {[%clk 0:00:25.3]} 45...
Nb6 {[%clk 0:00:57.4]} 1/2-1/2

[Event "GrandPrix_29.05"]
[Site "Chess.com"]
[Date "2020.05.29"]
[Round "8"]
[White "EvgenyRomanov"]
[Black "Misterlose0"]
[Result "0-1"]
[WhiteElo "2010"]
[BlackElo "1763"]
[TimeControl "600+2"]
[EndTime "13:03:12 PDT"]
[Termination "Misterlose0 won on time"]

1. d4 {[%clk 0:10:01.9]} 1... Nf6 {[%clk 0:10:00.4]} 2. Nf3 {[%clk 0:10:02.2]}
2... c5 {[%clk 0:10:02.3]} 3. d5 {[%clk 0:10:01.8]} 3... g6 {[%clk 0:10:01]} 4.
Nc3 {[%clk 0:10:01.6]} 4... Bg7 {[%clk 0:10:01.9]} 5. e4 {[%clk 0:10:02.7]} 5...
d6 {[%clk 0:10:00.3]} 6. Be2 {[%clk 0:10:01.9]} 6... O-O {[%clk 0:10:01]} 7. Nd2
{[%clk 0:10:02.7]} 7... Na6 {[%clk 0:09:46.9]} 8. O-O {[%clk 0:09:59.2]} 8...
Nc7 {[%clk 0:09:47.1]} 9. a4 {[%clk 0:09:59.6]} 9... b6 {[%clk 0:09:22.5]} 10.
Nc4 {[%clk 0:09:49.8]} 10... Ba6 {[%clk 0:09:22.2]} 11. Re1 {[%clk 0:09:44.9]}
11... Rb8 {[%clk 0:09:17.6]} 12. Bf4 {[%clk 0:09:27.5]} 12... Nd7 {[%clk
0:08:52]} 13. Bg3 {[%clk 0:08:41.2]} 13... Bxc4 {[%clk 0:08:50.2]} 14. Bxc4
{[%clk 0:08:41.7]} 14... a6 {[%clk 0:08:48.3]} 15. Bf1 {[%clk 0:08:25.4]} 15...
b5 {[%clk 0:08:48.3]} 16. axb5 {[%clk 0:08:25.4]} 16... axb5 {[%clk 0:08:45.2]}
17. Qd2 {[%clk 0:08:05.3]} 17... b4 {[%clk 0:07:29.6]} 18. Nd1 {[%clk
0:08:04.5]} 18... Nb5 {[%clk 0:07:26.4]} 19. c3 {[%clk 0:07:43.1]} 19... Qb6
{[%clk 0:06:56.3]} 20. Bh4 {[%clk 0:07:26.4]} 20... Rfe8 {[%clk 0:06:44.1]} 21.
f4 {[%clk 0:06:09.5]} 21... Ra8 {[%clk 0:06:27.9]} 22. Rxa8 {[%clk 0:06:07.1]}
22... Rxa8 {[%clk 0:06:29.8]} 23. Bxe7 {[%clk 0:05:21.8]} 23... Ra2 {[%clk
0:06:08.7]} 24. Bxb5 {[%clk 0:05:09.1]} 24... Qxb5 {[%clk 0:06:07.6]} 25. cxb4
{[%clk 0:04:48]} 25... cxb4 {[%clk 0:06:09.5]} 26. Kh1 {[%clk 0:04:22.5]} 26...
Nc5 {[%clk 0:05:45.9]} 27. Bxd6 {[%clk 0:03:30.1]} 27... Nxe4 {[%clk 0:05:42.2]}
28. Qxb4 {[%clk 0:03:30]} 28... Nxd6 {[%clk 0:03:30]} 29. Qxd6 {[%clk
0:03:31.9]} 29... Bxb2 {[%clk 0:03:30.3]} 30. Qc6 {[%clk 0:02:16.2]} 30... Qb4
{[%clk 0:02:31.1]} 31. Re8+ {[%clk 0:01:20.9]} 31... Kg7 {[%clk 0:02:31.2]} 32.
Qc8 {[%clk 0:01:21.8]} 32... Qxf4 {[%clk 0:01:57]} 33. Rg8+ {[%clk 0:01:18]}
33... Kh6 {[%clk 0:01:58.2]} 34. Qh3+ {[%clk 0:00:42.2]} 34... Kg5 {[%clk
0:01:58.5]} 35. Qd3 {[%clk 0:00:38.6]} 35... Bd4 {[%clk 0:00:47.3]} 36. g3
{[%clk 0:00:31.9]} 36... Qd2 {[%clk 0:00:47.6]} 37. h4+ {[%clk 0:00:07.5]} 37...
Kh6 {[%clk 0:00:48.7]} 0-1

[Event "GrandPrix_29.05"]
[Site "Chess.com"]
[Date "2020.05.29"]
[Round "8"]
[White "Martin_Petrov2000"]
[Black "rfhfb"]
[Result "0-1"]
[WhiteElo "1993"]
[BlackElo "2128"]
[TimeControl "600+2"]
[EndTime "13:03:13 PDT"]
[Termination "rfhfb won by resignation"]

1. c4 {[%clk 0:10:01.9]} 1... Nf6 {[%clk 0:09:59]} 2. Nc3 {[%clk 0:10:00.3]}
2... d5 {[%clk 0:10:00]} 3. cxd5 {[%clk 0:09:59.9]} 3... Nxd5 {[%clk 0:10:01.9]}
4. g3 {[%clk 0:09:51.6]} 4... g6 {[%clk 0:09:27.3]} 5. Bg2 {[%clk 0:09:50.8]}
5... Nxc3 {[%clk 0:09:28.4]} 6. bxc3 {[%clk 0:09:44.1]} 6... Bg7 {[%clk
0:09:27.4]} 7. h4 {[%clk 0:09:35.1]} 7... c5 {[%clk 0:08:33.9]} 8. h5 {[%clk
0:09:33.6]} 8... Nc6 {[%clk 0:08:33]} 9. Rb1 {[%clk 0:08:51.1]} 9... Qc7 {[%clk
0:07:57]} 10. Qb3 {[%clk 0:08:24.4]} 10... b6 {[%clk 0:06:46.8]} 11. Nf3 {[%clk
0:07:12.7]} 11... Bb7 {[%clk 0:05:40]} 12. d3 {[%clk 0:06:32.9]} 12... e6 {[%clk
0:05:05.3]} 13. Bf4 {[%clk 0:06:22.7]} 13... Qd7 {[%clk 0:05:04.6]} 14. Bg5
{[%clk 0:06:15.3]} 14... h6 {[%clk 0:04:58.5]} 15. Be3 {[%clk 0:06:11.9]} 15...
g5 {[%clk 0:04:55.3]} 16. O-O {[%clk 0:06:05.2]} 16... Rc8 {[%clk 0:04:21.9]}
17. Rfd1 {[%clk 0:05:54.3]} 17... O-O {[%clk 0:04:17.1]} 18. Qa4 {[%clk
0:05:37.7]} 18... Rfd8 {[%clk 0:03:13.6]} 19. d4 {[%clk 0:05:01.9]} 19... cxd4
{[%clk 0:03:12.5]} 20. cxd4 {[%clk 0:05:01.9]} 20... Na5 {[%clk 0:02:38.2]} 21.
Qb4 {[%clk 0:04:09]} 21... Nc4 {[%clk 0:02:22.1]} 22. Ne5 {[%clk 0:03:59.1]}
22... Nxe5 {[%clk 0:02:00.3]} 23. dxe5 {[%clk 0:03:52.7]} 23... Qxd1+ {[%clk
0:02:01.1]} 24. Rxd1 {[%clk 0:03:54.4]} 24... Rxd1+ {[%clk 0:02:02.6]} 25. Kh2
{[%clk 0:03:55.8]} 25... Bxg2 {[%clk 0:02:00.6]} 26. Kxg2 {[%clk 0:03:57.4]}
26... Bxe5 {[%clk 0:01:48.8]} 27. Qe7 {[%clk 0:03:57.2]} 27... Rc7 {[%clk
0:01:35.5]} 28. Qe8+ {[%clk 0:03:52.5]} 28... Kg7 {[%clk 0:01:35.6]} 29. Qa8
{[%clk 0:03:31.7]} 29... Bf6 {[%clk 0:01:29.5]} 30. f4 {[%clk 0:03:26.8]} 30...
Rd5 {[%clk 0:01:13.4]} 31. fxg5 {[%clk 0:03:16.8]} 31... Bxg5 {[%clk 0:01:11.6]}
32. Bxg5 {[%clk 0:03:00.6]} 32... Rxg5 {[%clk 0:01:13.5]} 33. Qf3 {[%clk
0:03:01]} 33... Rcc5 {[%clk 0:01:07]} 34. g4 {[%clk 0:02:53.8]} 34... Rxg4+
{[%clk 0:00:58.3]} 35. Kh3 {[%clk 0:02:43.2]} 35... Rcg5 {[%clk 0:00:58.8]} 36.
Qc3+ {[%clk 0:02:41.5]} 36... e5 {[%clk 0:00:57.3]} 37. e3 {[%clk 0:02:23.5]}
37... Rg3+ {[%clk 0:00:49.2]} 38. Kh2 {[%clk 0:02:23.2]} 38... Rg2+ {[%clk
0:00:50.5]} 39. Kh3 {[%clk 0:02:23.6]} 39... Rxa2 {[%clk 0:00:48.8]} 40. Qc4
{[%clk 0:01:34.6]} 40... Rxh5+ {[%clk 0:00:22.7]} 41. Kg4 {[%clk 0:01:36.5]}
41... Rg5+ {[%clk 0:00:23.6]} 42. Kf3 {[%clk 0:01:36.8]} 42... Rag2 {[%clk
0:00:23.5]} 43. Qc7 {[%clk 0:01:35.1]} 43... R2g3+ {[%clk 0:00:19.9]} 44. Ke4
{[%clk 0:01:35.5]} 44... R3g4+ {[%clk 0:00:17.8]} 45. Kd5 {[%clk 0:01:35.6]}
45... h5 {[%clk 0:00:18.7]} 46. Qxa7 {[%clk 0:01:33.7]} 46... h4 {[%clk
0:00:19.6]} 47. Qxb6 {[%clk 0:01:34.7]} 47... h3 {[%clk 0:00:20.1]} 48. Qb2
{[%clk 0:01:33]} 48... Rg2 {[%clk 0:00:20.3]} 49. Qc1 {[%clk 0:01:29]} 49... h2
{[%clk 0:00:21.2]} 50. Qh1 {[%clk 0:01:30.2]} 50... Rd2+ {[%clk 0:00:22.4]} 51.
Ke4 {[%clk 0:01:30.4]} 51... Rg1 {[%clk 0:00:24.3]} 52. Qf3 {[%clk 0:01:27.3]}
0-1

[Event "GrandPrix_29.05"]
[Site "Chess.com"]
[Date "2020.05.29"]
[Round "8"]
[White "AmilAbbasov"]
[Black "Volodar_Murzin"]
[Result "0-1"]
[WhiteElo "2243"]
[BlackElo "2423"]
[TimeControl "600+2"]
[EndTime "13:03:16 PDT"]
[Termination "Volodar_Murzin won by resignation"]

1. e4 {[%clk 0:10:01.4]} 1... g6 {[%clk 0:09:59.4]} 2. d4 {[%clk 0:10:00.8]}
2... Bg7 {[%clk 0:09:59.9]} 3. Nc3 {[%clk 0:10:01.3]} 3... d6 {[%clk 0:10:00.8]}
4. Be3 {[%clk 0:10:01.4]} 4... Nd7 {[%clk 0:10:00.1]} 5. Qd2 {[%clk 0:10:01.6]}
5... a6 {[%clk 0:09:57.9]} 6. O-O-O {[%clk 0:10:02.1]} 6... b5 {[%clk
0:09:57.9]} 7. h4 {[%clk 0:10:01.6]} 7... h5 {[%clk 0:09:56.2]} 8. Nh3 {[%clk
0:09:59.7]} 8... Bb7 {[%clk 0:09:54.4]} 9. Ng5 {[%clk 0:09:58.7]} 9... e6 {[%clk
0:09:13.1]} 10. f4 {[%clk 0:09:34.4]} 10... Ne7 {[%clk 0:09:02.6]} 11. Bd3
{[%clk 0:09:11.7]} 11... Nf6 {[%clk 0:08:33.5]} 12. Ne2 {[%clk 0:08:58]} 12...
Qd7 {[%clk 0:08:28.8]} 13. Ng3 {[%clk 0:08:47.8]} 13... Ng4 {[%clk 0:08:27.6]}
14. Bg1 {[%clk 0:08:47]} 14... f6 {[%clk 0:08:22.8]} 15. Nh3 {[%clk 0:08:33.6]}
15... Bh6 {[%clk 0:08:09.2]} 16. Kb1 {[%clk 0:08:26.4]} 16... Rc8 {[%clk
0:06:12.8]} 17. Be2 {[%clk 0:08:08.4]} 17... f5 {[%clk 0:05:28.8]} 18. Bf3
{[%clk 0:07:59.4]} 18... fxe4 {[%clk 0:04:10.5]} 19. Bxe4 {[%clk 0:07:51.4]}
19... Bxe4 {[%clk 0:04:08.4]} 20. Nxe4 {[%clk 0:07:53.3]} 20... Nf5 {[%clk
0:04:08]} 21. Nhf2 {[%clk 0:06:51.6]} 21... Qf7 {[%clk 0:03:32.3]} 22. Nxg4
{[%clk 0:06:16.7]} 22... hxg4 {[%clk 0:03:34.2]} 23. Bf2 {[%clk 0:06:17.6]}
23... Kd7 {[%clk 0:03:17.6]} 24. g3 {[%clk 0:06:15.2]} 24... Ne7 {[%clk
0:03:14.5]} 25. Rhe1 {[%clk 0:06:11.1]} 25... Qf5 {[%clk 0:03:11.7]} 26. Qe2
{[%clk 0:05:31.6]} 26... Rhf8 {[%clk 0:03:09.9]} 27. Bg1 {[%clk 0:05:21.1]}
27... Nd5 {[%clk 0:03:05.1]} 28. Nf2 {[%clk 0:05:20.1]} 28... Nf6 {[%clk
0:03:04.9]} 29. Nd3 {[%clk 0:05:20]} 29... Nd5 {[%clk 0:03:03]} 30. Be3 {[%clk
0:05:19.3]} 30... Rfe8 {[%clk 0:02:51.9]} 31. Nf2 {[%clk 0:05:18.7]} 31... Nf6
{[%clk 0:02:50.9]} 32. Bc1 {[%clk 0:05:17.1]} 32... Bg7 {[%clk 0:02:46.3]} 33.
b3 {[%clk 0:05:03.1]} 33... Ke7 {[%clk 0:01:47.8]} 34. Bb2 {[%clk 0:04:56]}
34... Kf7 {[%clk 0:01:47.3]} 35. Ka1 {[%clk 0:04:43.1]} 35... Kg8 {[%clk
0:01:46.4]} 36. Rd3 {[%clk 0:04:32.2]} 36... Re7 {[%clk 0:01:41.2]} 37. Nd1
{[%clk 0:04:32.5]} 37... Nd5 {[%clk 0:01:37.6]} 38. c4 {[%clk 0:04:20.1]} 38...
bxc4 {[%clk 0:00:42.4]} 39. bxc4 {[%clk 0:04:22]} 39... Nb4 {[%clk 0:00:43.5]}
40. Rd2 {[%clk 0:04:18.5]} 40... Qa5 {[%clk 0:00:43.2]} 41. Bc3 {[%clk 0:03:01]}
41... c5 {[%clk 0:00:40.7]} 42. d5 {[%clk 0:03:01.2]} 42... Nxa2 {[%clk
0:00:22.9]} 43. Rxa2 {[%clk 0:01:45.5]} 43... Bxc3+ {[%clk 0:00:22.7]} 44. Nxc3
{[%clk 0:01:34.7]} 44... Qxc3+ {[%clk 0:00:23.6]} 45. Rb2 {[%clk 0:01:36.1]}
45... Rb8 {[%clk 0:00:19.5]} 46. Rb1 {[%clk 0:01:29.4]} 46... Reb7 {[%clk
0:00:16.2]} 0-1

[Event "GrandPrix_29.05"]
[Site "Chess.com"]
[Date "2020.05.29"]
[Round "8"]
[White "Flawless_Fighter"]
[Black "mikolka1985"]
[Result "1-0"]
[WhiteElo "2312"]
[BlackElo "2308"]
[TimeControl "600+2"]
[EndTime "13:03:20 PDT"]
[Termination "Flawless_Fighter won by resignation"]

1. e4 {[%clk 0:10:01.9]} 1... e5 {[%clk 0:09:59.8]} 2. Nf3 {[%clk 0:10:01.4]}
2... Nc6 {[%clk 0:09:59.8]} 3. Bb5 {[%clk 0:10:01.1]} 3... a6 {[%clk 0:09:59.6]}
4. Ba4 {[%clk 0:10:01]} 4... Nf6 {[%clk 0:10:00.4]} 5. O-O {[%clk 0:10:01.2]}
5... Be7 {[%clk 0:10:00.6]} 6. Re1 {[%clk 0:10:02.1]} 6... b5 {[%clk 0:10:00.4]}
7. Bb3 {[%clk 0:10:03.1]} 7... d6 {[%clk 0:10:01.5]} 8. c3 {[%clk 0:10:03.8]}
8... O-O {[%clk 0:10:02.7]} 9. h3 {[%clk 0:10:05.5]} 9... Nb8 {[%clk 0:09:59]}
10. d4 {[%clk 0:10:06]} 10... Nbd7 {[%clk 0:09:57.8]} 11. Nbd2 {[%clk
0:10:07.3]} 11... Re8 {[%clk 0:09:57.9]} 12. Bxf7+ {[%clk 0:10:04.5]} 12... Kh8
{[%clk 0:09:19.9]} 13. Bxe8 {[%clk 0:10:04.3]} 13... Qxe8 {[%clk 0:09:20.4]} 14.
Nf1 {[%clk 0:09:59.9]} 14... Bb7 {[%clk 0:09:20.3]} 15. Ng3 {[%clk 0:10:00.9]}
15... Bf8 {[%clk 0:09:20.1]} 16. a4 {[%clk 0:09:50.5]} 16... b4 {[%clk
0:09:09.7]} 17. cxb4 {[%clk 0:09:39.6]} 17... exd4 {[%clk 0:09:10]} 18. Nxd4
{[%clk 0:09:31.5]} 18... Ne5 {[%clk 0:09:09.8]} 19. b3 {[%clk 0:09:04.6]} 19...
Qf7 {[%clk 0:09:03.7]} 20. Bb2 {[%clk 0:08:55.7]} 20... Ng6 {[%clk 0:09:01.8]}
21. Ndf5 {[%clk 0:08:38.7]} 21... Re8 {[%clk 0:08:58.8]} 22. Qd4 {[%clk
0:08:30]} 22... Ne5 {[%clk 0:08:33.1]} 23. Qa7 {[%clk 0:07:16.4]} 23... Bc8
{[%clk 0:06:55]} 24. Rad1 {[%clk 0:06:48.2]} 24... Nc6 {[%clk 0:06:46.7]} 25.
Qe3 {[%clk 0:06:45.3]} 25... Nxb4 {[%clk 0:06:45]} 26. Qc3 {[%clk 0:05:43.3]}
26... a5 {[%clk 0:06:38.9]} 27. f3 {[%clk 0:05:37.2]} 27... Re5 {[%clk
0:05:51.4]} 28. Qd2 {[%clk 0:05:06.5]} 28... Re8 {[%clk 0:05:21.5]} 29. Rc1
{[%clk 0:04:57.4]} 29... Be6 {[%clk 0:05:07.7]} 30. Nd4 {[%clk 0:04:39.6]} 30...
Bxb3 {[%clk 0:04:26.1]} 31. Nxb3 {[%clk 0:04:31.4]} 31... Qxb3 {[%clk
0:04:25.1]} 32. Bxf6 {[%clk 0:04:31]} 32... gxf6 {[%clk 0:04:25.1]} 33. Rxc7
{[%clk 0:04:29]} 33... Nd3 {[%clk 0:04:22.4]} 34. Re3 {[%clk 0:03:54.5]} 34...
Qb6 {[%clk 0:03:49.9]} 35. Rc3 {[%clk 0:03:07.2]} 35... Ne5 {[%clk 0:03:48.2]}
36. Nf5 {[%clk 0:03:03.5]} 36... d5 {[%clk 0:03:39.9]} 37. Qxd5 {[%clk
0:02:56.4]} 37... Bb4 {[%clk 0:03:16.8]} 38. Qb5 {[%clk 0:01:46.7]} 38... Qd8
{[%clk 0:02:41]} 39. Qb7 {[%clk 0:01:22.5]} 39... Rg8 {[%clk 0:02:35.4]} 40. Rc7
{[%clk 0:01:08.1]} 40... Qd1+ {[%clk 0:02:32.3]} 41. Kh2 {[%clk 0:01:08]} 41...
Nxf3+ {[%clk 0:01:36]} 42. Rxf3 {[%clk 0:00:54.8]} 42... Bd6+ {[%clk 0:01:36.9]}
43. Nxd6 {[%clk 0:00:46.4]} 43... Qxd6+ {[%clk 0:01:33.8]} 44. Kg1 {[%clk
0:00:21.8]} 44... Qd4+ {[%clk 0:01:24.5]} 45. Rf2 {[%clk 0:00:21.9]} 45... Qd1+
{[%clk 0:01:14.2]} 46. Rf1 {[%clk 0:00:22.8]} 46... Qd4+ {[%clk 0:01:14]} 47.
Kh1 {[%clk 0:00:21.4]} 47... Rg3 {[%clk 0:01:10.2]} 48. Rxh7+ {[%clk 0:00:20.5]}
1-0

[Event "GrandPrix_29.05"]
[Site "Chess.com"]
[Date "2020.05.29"]
[Round "8"]
[White "Kopytkin"]
[Black "SergeyVashchilov"]
[Result "0-1"]
[WhiteElo "2107"]
[BlackElo "2082"]
[TimeControl "600+2"]
[EndTime "13:03:24 PDT"]
[Termination "SergeyVashchilov won on time"]

1. e4 {[%clk 0:10:01.9]} 1... e6 {[%clk 0:10:01.1]} 2. d4 {[%clk 0:10:02.6]}
2... d5 {[%clk 0:10:02.2]} 3. e5 {[%clk 0:10:04]} 3... c5 {[%clk 0:10:02.8]} 4.
c3 {[%clk 0:10:05.3]} 4... Qb6 {[%clk 0:10:03.9]} 5. Nf3 {[%clk 0:10:06.3]} 5...
Nc6 {[%clk 0:10:04.9]} 6. Bd3 {[%clk 0:10:06.3]} 6... Bd7 {[%clk 0:10:05.1]} 7.
dxc5 {[%clk 0:10:06.9]} 7... Bxc5 {[%clk 0:10:02.9]} 8. O-O {[%clk 0:10:08]}
8... a5 {[%clk 0:09:58]} 9. Qe2 {[%clk 0:09:52.9]} 9... Nge7 {[%clk 0:09:07.1]}
10. b3 {[%clk 0:09:51.9]} 10... Ng6 {[%clk 0:09:01.4]} 11. Re1 {[%clk 0:09:37]}
11... O-O {[%clk 0:08:32.9]} 12. Bg5 {[%clk 0:07:46.5]} 12... Ncxe5 {[%clk
0:07:27.7]} 13. Nxe5 {[%clk 0:07:23.4]} 13... Nxe5 {[%clk 0:07:27.3]} 14. Bc2
{[%clk 0:06:35.4]} 14... f6 {[%clk 0:06:09.1]} 15. Bh4 {[%clk 0:06:33.1]} 15...
Ng6 {[%clk 0:06:03.8]} 16. Bg3 {[%clk 0:06:16.3]} 16... e5 {[%clk 0:05:28.7]}
17. Bxg6 {[%clk 0:06:11.1]} 17... hxg6 {[%clk 0:05:28.8]} 18. Qd3 {[%clk
0:06:12.7]} 18... Be6 {[%clk 0:04:13.3]} 19. Qxg6 {[%clk 0:06:09]} 19... Rac8
{[%clk 0:04:14.1]} 20. Nd2 {[%clk 0:06:05.4]} 20... Ba3 {[%clk 0:04:00.2]} 21.
h4 {[%clk 0:05:37.5]} 21... Rxc3 {[%clk 0:03:52]} 22. Nb1 {[%clk 0:05:21.9]}
22... Bf7 {[%clk 0:03:06.5]} 23. Qg4 {[%clk 0:05:21.1]} 23... Rxg3 {[%clk
0:02:56.8]} 24. Qxg3 {[%clk 0:05:20.3]} 24... Bb2 {[%clk 0:02:57.9]} 25. Nd2
{[%clk 0:05:18.6]} 25... Bxa1 {[%clk 0:02:54.1]} 26. Rxa1 {[%clk 0:05:20.5]}
26... Qd4 {[%clk 0:02:53.8]} 27. Rd1 {[%clk 0:05:18.1]} 27... Rc8 {[%clk
0:02:54.5]} 28. Qf3 {[%clk 0:04:58]} 28... Rc2 {[%clk 0:02:47.4]} 29. Nf1 {[%clk
0:04:51.4]} 29... Qxh4 {[%clk 0:02:46.9]} 30. Ne3 {[%clk 0:04:46.9]} 30... Rxa2
{[%clk 0:02:13.2]} 31. Nxd5 {[%clk 0:04:36.4]} 31... Bxd5 {[%clk 0:02:05.1]} 32.
Qxd5+ {[%clk 0:04:36.5]} 32... Kh7 {[%clk 0:02:05.5]} 33. g3 {[%clk 0:04:32.9]}
33... Qg4 {[%clk 0:01:55.3]} 34. Re1 {[%clk 0:02:00.5]} 34... Qf5 {[%clk
0:01:41.9]} 35. Rf1 {[%clk 0:01:44.7]} 35... Rb2 {[%clk 0:01:37.5]} 36. Qxb7
{[%clk 0:01:41]} 36... e4 {[%clk 0:01:31.9]} 37. Qa6 {[%clk 0:00:43.5]} 37...
Rxb3 {[%clk 0:01:26.6]} 38. Qe2 {[%clk 0:00:40.8]} 38... Rf3 {[%clk 0:01:10.3]}
39. Re1 {[%clk 0:00:36]} 39... e3 {[%clk 0:01:09.1]} 40. Rf1 {[%clk 0:00:07]}
40... Rxf2 {[%clk 0:00:57.6]} 41. Rxf2 {[%clk 0:00:07.4]} 41... Qxf2+ {[%clk
0:00:57]} 42. Qxf2 {[%clk 0:00:07.6]} 42... exf2+ {[%clk 0:00:58.9]} 43. Kxf2
{[%clk 0:00:08.9]} 43... Kg6 {[%clk 0:01:00.3]} 0-1